[Event "2026 Biel Blitz Open"]
[Site "Biel, CH"]
[Date "2026.07.19"]
[Round "13"]
[White "Wilhelm, Serge"]
[Black "Filimonov, Arsenii"]
[Result "0-1"]
[Board "49"]
[TimeControl "180+2"]
[WhiteFideId "1305808"]
[BlackFideId "34171584"]
[WhiteElo "1923"]
[BlackElo "1735"]
[WhiteClock "0:00:04"]
[BlackClock "0:00:01"]
[Variant "Standard"]
[EndDate "2026.07.19"]
[EndTime "16:19:56"]

1. Nf3 {[%clk 0:03:03]}  Nf6 {[%clk 0:03:04]} 2. g3 {[%clk 0:03:04]}  g6 {[%clk 0:03:05]} 3. Bg2 {[%clk 0:03:05]}  Bg7 {[%clk 0:03:05]}
4. d3 {[%clk 0:03:06]}  O-O {[%clk 0:03:05]} 5. O-O {[%clk 0:03:06]}  d5 {[%clk 0:03:06]} 6. Nbd2 {[%clk 0:03:07]}  c5 {[%clk 0:03:07]}
7. e4 {[%clk 0:03:05]}  dxe4 {[%clk 0:03:04]} 8. dxe4 {[%clk 0:03:05]}  Nc6 {[%clk 0:03:03]} 9. c3 {[%clk 0:03:04]}  Qc7 {[%clk 0:02:51]}
10. Qe2 {[%clk 0:03:02]}  b6 {[%clk 0:02:38]} 11. Re1 {[%clk 0:02:57]}  Nd7 {[%clk 0:02:28]} 12. Nf1 {[%clk 0:02:45]}  a5 {[%clk 0:02:16]}
13. a4 {[%clk 0:02:41]}  Ba6 {[%clk 0:02:16]} 14. Qc2 {[%clk 0:02:40]}  c4 {[%clk 0:02:11]} 15. Bf4 {[%clk 0:02:39]}  e5 {[%clk 0:02:06]}
16. Bd2 {[%clk 0:02:33]}  Nc5 {[%clk 0:02:06]} 17. Ne3 {[%clk 0:02:30]}  Nb3 {[%clk 0:01:46]} 18. Rad1 {[%clk 0:02:26]}  Ne7 {[%clk 0:01:34]}
19. Bc1 {[%clk 0:02:07]}  Qc6 {[%clk 0:01:24]} 20. Nd5 {[%clk 0:02:01]}  Rfe8 {[%clk 0:01:13]} 21. Be3 {[%clk 0:01:42]}  Nxd5 {[%clk 0:00:54]}
22. exd5 {[%clk 0:01:42]}  Qd6 {[%clk 0:00:51]} 23. h4 {[%clk 0:01:15]}  f5 {[%clk 0:00:49]} 24. Nd2 {[%clk 0:00:55]}  Nc5 {[%clk 0:00:42]}
25. Bf1 {[%clk 0:00:42]}  Nd3 {[%clk 0:00:37]} 26. Re2 {[%clk 0:00:22]}  Qxd5 {[%clk 0:00:28]} 27. Bg2 {[%clk 0:00:23]}  e4 {[%clk 0:00:29]}
28. Bxb6 {[%clk 0:00:17]}  Rab8 {[%clk 0:00:20]} 29. Bd4 {[%clk 0:00:16]}  Rxb2 {[%clk 0:00:16]} 30. Qxb2 {[%clk 0:00:08]}  Nxb2 {[%clk 0:00:16]}
31. Rb1 {[%clk 0:00:09]}  Bxd4 {[%clk 0:00:13]} 32. cxd4 {[%clk 0:00:10]}  Nxa4 {[%clk 0:00:11]} 33. Ra1 {[%clk 0:00:06]}  Nc3 {[%clk 0:00:09]}
34. Ree1 {[%clk 0:00:07]}  a4 {[%clk 0:00:08]} 35. Bf1 {[%clk 0:00:05]}  Qxd4 {[%clk 0:00:08]} 36. Rec1 {[%clk 0:00:03]}  Rb8 {[%clk 0:00:05]}
37. Ra3 {[%clk 0:00:04]}  Nd5 {[%clk 0:00:06]} 38. Bxc4 {[%clk 0:00:04]}  Bxc4 {[%clk 0:00:07]} 39. Nxc4 {[%clk 0:00:05]}  Rc8 {[%clk 0:00:05]}
40. Rxa4 {[%clk 0:00:04]}  Nb6 {[%clk 0:00:06]} 41. Nxb6 {[%clk 0:00:04]}  Rxc1+ {[%clk 0:00:05]} 42. Kg2 {[%clk 0:00:00]}  Qxb6 {[%clk 0:00:01]} 0-1

[Event "2026 Biel Blitz Open"]
[Site "Biel, CH"]
[Date "2026.07.19"]
[Round "13"]
[White "Stevens, Christian"]
[Black "Chu, Wa Ching David"]
[Result "1-0"]
[Board "50"]
[TimeControl "180+2"]
[WhiteFideId "649090"]
[BlackFideId "6013180"]
[WhiteElo "1912"]
[BlackElo "1673"]
[WhiteClock "0:00:11"]
[BlackClock "0:00:16"]
[Variant "Standard"]
[EndDate "2026.07.19"]
[EndTime "16:25:58"]

1. e4 {[%clk 0:03:02]}  c5 {[%clk 0:03:04]} 2. Nc3 {[%clk 0:03:03]}  g6 {[%clk 0:03:04]} 3. g3 {[%clk 0:03:03]}  Nc6 {[%clk 0:03:05]}
4. Bg2 {[%clk 0:03:02]}  Bg7 {[%clk 0:03:05]} 5. d3 {[%clk 0:03:05]}  e6 {[%clk 0:03:09]} 6. Be3 {[%clk 0:03:04]}  Nd4 {[%clk 0:03:10]}
7. Qd2 {[%clk 0:03:05]}  Ne7 {[%clk 0:02:57]} 8. Nd1 {[%clk 0:03:06]}  h5 {[%clk 0:02:43]} 9. c3 {[%clk 0:03:06]}  Ndc6 {[%clk 0:02:44]}
10. Bxc5 {[%clk 0:03:03]}  d6 {[%clk 0:02:43]} 11. Be3 {[%clk 0:03:04]}  b6 {[%clk 0:02:41]} 12. h3 {[%clk 0:02:43]}  Bb7 {[%clk 0:02:39]}
13. f4 {[%clk 0:02:42]}  Qc7 {[%clk 0:02:39]} 14. Nf3 {[%clk 0:02:40]}  d5 {[%clk 0:02:38]} 15. Bf2 {[%clk 0:01:55]}  O-O-O {[%clk 0:02:26]}
16. e5 {[%clk 0:01:43]}  Kb8 {[%clk 0:02:20]} 17. d4 {[%clk 0:01:43]}  Ba6 {[%clk 0:02:06]} 18. Ne3 {[%clk 0:01:43]}  Na5 {[%clk 0:01:57]}
19. b3 {[%clk 0:01:42]}  Nf5 {[%clk 0:01:49]} 20. Nxf5 {[%clk 0:01:41]}  exf5 {[%clk 0:01:49]} 21. Bf1 {[%clk 0:01:34]}  Bxf1 {[%clk 0:01:47]}
22. Kxf1 {[%clk 0:01:34]}  Rc8 {[%clk 0:01:41]} 23. Rc1 {[%clk 0:01:33]}  Bf8 {[%clk 0:01:31]} 24. Kg2 {[%clk 0:01:29]}  Ba3 {[%clk 0:01:25]}
25. Rc2 {[%clk 0:01:29]}  Be7 {[%clk 0:01:24]} 26. Kh2 {[%clk 0:01:05]}  Rhd8 {[%clk 0:01:06]} 27. Ng1 {[%clk 0:00:58]}  h4 {[%clk 0:01:01]}
28. g4 {[%clk 0:00:55]}  fxg4 {[%clk 0:00:58]} 29. hxg4 {[%clk 0:00:56]}  Qd7 {[%clk 0:00:59]} 30. Qe2 {[%clk 0:00:45]}  Kb7 {[%clk 0:00:45]}
31. Kh3 {[%clk 0:00:44]}  Rh8 {[%clk 0:00:46]} 32. Nf3 {[%clk 0:00:43]}  Qe6 {[%clk 0:00:37]} 33. Nd2 {[%clk 0:00:35]}  f5 {[%clk 0:00:35]}
34. g5 {[%clk 0:00:34]}  Qd7 {[%clk 0:00:32]} 35. b4 {[%clk 0:00:32]}  Nc4 {[%clk 0:00:33]} 36. Nxc4 {[%clk 0:00:33]}  Rxc4 {[%clk 0:00:34]}
37. e6 {[%clk 0:00:31]}  Qc7 {[%clk 0:00:32]} 38. Qe3 {[%clk 0:00:28]}  Bxb4 {[%clk 0:00:29]} 39. Be1 {[%clk 0:00:26]}  Rc8 {[%clk 0:00:26]}
40. Kg2 {[%clk 0:00:17]}  Bxc3 {[%clk 0:00:24]} 41. Bxc3 {[%clk 0:00:07]}  Rxc3 {[%clk 0:00:22]} 42. Rxc3 {[%clk 0:00:08]}  Qxc3 {[%clk 0:00:26]}
43. Qxc3 {[%clk 0:00:09]}  Rxc3 {[%clk 0:00:27]} 44. Rxh4 {[%clk 0:00:09]}  Re3 {[%clk 0:00:24]} 45. Rh7+ {[%clk 0:00:08]}  Ka6 {[%clk 0:00:14]}
46. e7 {[%clk 0:00:08]}  Re4 {[%clk 0:00:12]} 47. Kf3 {[%clk 0:00:09]}  Kb5 {[%clk 0:00:14]} 48. Rg7 {[%clk 0:00:09]}  Ka4 {[%clk 0:00:10]}
49. Rxg6 {[%clk 0:00:10]}  Rxe7 {[%clk 0:00:11]} 50. Rf6 {[%clk 0:00:10]}  Ka3 {[%clk 0:00:11]} 51. Rxf5 {[%clk 0:00:10]}  b5 {[%clk 0:00:12]}
52. Rxd5 {[%clk 0:00:11]}  b4 {[%clk 0:00:13]} 53. Ra5+ {[%clk 0:00:11]}  Kb2 {[%clk 0:00:14]} 54. f5 {[%clk 0:00:12]}  Kc3 {[%clk 0:00:10]}
55. f6 {[%clk 0:00:12]}  Rf7 {[%clk 0:00:08]} 56. d5 {[%clk 0:00:13]}  Kd4 {[%clk 0:00:08]} 57. Kf4 {[%clk 0:00:15]}  a6 {[%clk 0:00:08]}
58. Kf5 {[%clk 0:00:16]}  Rf8 {[%clk 0:00:08]} 59. g6 {[%clk 0:00:17]}  Rd8 {[%clk 0:00:10]} 60. g7 {[%clk 0:00:17]}  Rd7 {[%clk 0:00:08]}
61. Kg6 {[%clk 0:00:18]}  Rxd5 {[%clk 0:00:08]} 62. Rxd5+ {[%clk 0:00:18]}  Kxd5 {[%clk 0:00:09]} 63. f7 {[%clk 0:00:20]}  a5 {[%clk 0:00:11]}
64. f8=Q {[%clk 0:00:19]}  Kd4 {[%clk 0:00:12]} 65. g8=Q {[%clk 0:00:18]}  a4 {[%clk 0:00:13]} 66. Qd6+ {[%clk 0:00:18]}  Kc3 {[%clk 0:00:14]}
67. Qc8+ {[%clk 0:00:18]}  Kb2 {[%clk 0:00:15]} 68. Qd2+ {[%clk 0:00:18]}  Ka3 {[%clk 0:00:15]} 69. Qc4 {[%clk 0:00:18]}  b3 {[%clk 0:00:16]}
70. Qcb4# {[%clk 0:00:11]} 1-0

[Event "2026 Biel Blitz Open"]
[Site "Biel, CH"]
[Date "2026.07.19"]
[Round "13"]
[White "Gireada, Lucas"]
[Black "Zumbrunn, Simon"]
[Result "0-1"]
[Board "52"]
[TimeControl "180+2"]
[WhiteFideId "1373544"]
[BlackFideId "1364146"]
[WhiteElo "1651"]
[BlackElo "1802"]
[WhiteClock "0:00:44"]
[BlackClock "0:01:09"]
[Variant "Standard"]
[EndDate "2026.07.19"]
[EndTime "16:18:46"]

1. d4 {[%clk 0:03:03]}  Nf6 {[%clk 0:03:03]} 2. c4 {[%clk 0:03:04]}  c5 {[%clk 0:03:05]} 3. d5 {[%clk 0:03:05]}  g6 {[%clk 0:03:06]}
4. Nc3 {[%clk 0:03:06]}  Bg7 {[%clk 0:03:07]} 5. e4 {[%clk 0:03:06]}  d6 {[%clk 0:03:08]} 6. h3 {[%clk 0:03:07]}  O-O {[%clk 0:03:09]}
7. Nf3 {[%clk 0:03:08]}  e6 {[%clk 0:03:06]} 8. Bd3 {[%clk 0:03:09]}  exd5 {[%clk 0:03:07]} 9. exd5 {[%clk 0:03:10]}  Re8+ {[%clk 0:03:02]}
10. Be3 {[%clk 0:03:11]}  Nbd7 {[%clk 0:02:51]} 11. O-O {[%clk 0:03:09]}  a6 {[%clk 0:02:49]} 12. a4 {[%clk 0:03:10]}  b6 {[%clk 0:02:50]}
13. Re1 {[%clk 0:03:03]}  Ne5 {[%clk 0:02:51]} 14. Nxe5 {[%clk 0:03:03]}  dxe5 {[%clk 0:02:52]} 15. Qc2 {[%clk 0:02:50]}  Bd7 {[%clk 0:02:45]}
16. f4 {[%clk 0:02:37]}  Nh5 {[%clk 0:02:37]} 17. fxe5 {[%clk 0:02:22]}  Bxe5 {[%clk 0:02:38]} 18. Qd2 {[%clk 0:02:11]}  Qh4 {[%clk 0:02:34]}
19. Bg5 {[%clk 0:02:00]}  Qg3 {[%clk 0:02:30]} 20. Ne4 {[%clk 0:01:36]}  Qh2+ {[%clk 0:01:49]} 21. Kf2 {[%clk 0:01:37]}  Bd4+ {[%clk 0:01:17]}
22. Be3 {[%clk 0:01:22]}  Bxh3 {[%clk 0:01:13]} 23. Bxd4 {[%clk 0:01:09]}  Qxg2+ {[%clk 0:01:12]} 24. Ke3 {[%clk 0:01:11]}  cxd4+ {[%clk 0:01:10]}
25. Kxd4 {[%clk 0:01:11]}  Rxe4+ {[%clk 0:01:09]} 26. Rxe4 {[%clk 0:01:05]}  Qxd2 {[%clk 0:01:10]} 27. Rae1 {[%clk 0:00:56]}  Bf5 {[%clk 0:01:09]}
28. R4e3 {[%clk 0:00:52]}  Nf4 {[%clk 0:01:08]} 29. Ke5 {[%clk 0:00:46]}  Nxd3+ {[%clk 0:01:07]} 30. Rxd3 {[%clk 0:00:43]}  Qxd3 {[%clk 0:01:09]}
31. Kf6 {[%clk 0:00:44]}  Qd4+ {[%clk 0:01:10]} 32. Kg5 {[%clk 0:00:43]}  h6+ {[%clk 0:01:08]} 33. Kxh6 {[%clk 0:00:44]}  Qh4# {[%clk 0:01:09]} 0-1

[Event "2026 Biel Blitz Open"]
[Site "Biel, CH"]
[Date "2026.07.19"]
[Round "13"]
[White "Tcheau, Alain"]
[Black "Tahari, Youcef Nazim"]
[Result "1/2-1/2"]
[Board "54"]
[TimeControl "180+2"]
[WhiteFideId "1306014"]
[BlackFideId "282537"]
[WhiteElo "1777"]
[BlackElo "1691"]
[WhiteClock "0:01:05"]
[BlackClock "0:00:36"]
[Variant "Standard"]
[EndDate "2026.07.19"]
[EndTime "16:23:04"]

1. d4 {[%clk 0:03:01]}  Nf6 {[%clk 0:03:03]} 2. c3 {[%clk 0:03:02]}  d5 {[%clk 0:03:00]} 3. h3 {[%clk 0:03:02]}  Bf5 {[%clk 0:02:52]}
4. Bf4 {[%clk 0:03:02]}  c6 {[%clk 0:02:48]} 5. e3 {[%clk 0:03:03]}  Qb6 {[%clk 0:02:49]} 6. Qb3 {[%clk 0:02:55]}  Qxb3 {[%clk 0:02:45]}
7. axb3 {[%clk 0:02:56]}  h6 {[%clk 0:02:42]} 8. Nf3 {[%clk 0:02:56]}  e6 {[%clk 0:02:37]} 9. Be2 {[%clk 0:02:56]}  Be7 {[%clk 0:02:38]}
10. O-O {[%clk 0:02:56]}  O-O {[%clk 0:02:38]} 11. Nbd2 {[%clk 0:02:55]}  Nbd7 {[%clk 0:02:25]} 12. Ne5 {[%clk 0:02:53]}  Nxe5 {[%clk 0:02:18]}
13. Bxe5 {[%clk 0:02:53]}  Nd7 {[%clk 0:02:12]} 14. Bg3 {[%clk 0:02:49]}  c5 {[%clk 0:02:13]} 15. f3 {[%clk 0:02:27]}  Nf6 {[%clk 0:02:06]}
16. Rfe1 {[%clk 0:02:14]}  a6 {[%clk 0:01:53]} 17. Bf1 {[%clk 0:02:08]}  Bc2 {[%clk 0:01:43]} 18. Rec1 {[%clk 0:02:04]}  Bh7 {[%clk 0:01:41]}
19. Re1 {[%clk 0:01:52]}  Bc2 {[%clk 0:01:38]} 20. Rac1 {[%clk 0:01:53]}  Bh7 {[%clk 0:01:38]} 21. e4 {[%clk 0:01:54]}  dxe4 {[%clk 0:01:33]}
22. fxe4 {[%clk 0:01:54]}  cxd4 {[%clk 0:01:25]} 23. cxd4 {[%clk 0:01:54]}  Rac8 {[%clk 0:01:26]} 24. Bd3 {[%clk 0:01:41]}  Bb4 {[%clk 0:01:26]}
25. Rcd1 {[%clk 0:01:29]}  Nd5 {[%clk 0:00:41]} 26. exd5 {[%clk 0:01:20]}  Bxd3 {[%clk 0:00:42]} 27. dxe6 {[%clk 0:01:19]}  fxe6 {[%clk 0:00:35]}
28. Rxe6 {[%clk 0:01:16]}  Rc2 {[%clk 0:00:36]} 29. Nc4 {[%clk 0:01:05]} 1/2-1/2